lending/lending_fUSD_20240110
["ID","MTS","AMOUNT","RATE_DAILY","PERIOD"]
[311057789,1704891111723,-500.0,0.0003178,2]
[311057790,1704891111734,-1044.13,0.0003178,2]
[311057791,1704891111743,-1127.84,0.0003178,2]
[311057792,1704891111754,-1154.12,0.0003178,2]
[311057793,1704891111764,-551.43,0.0003178,2]
[311057794,1704891111774,-168.54345584,0.0003178,2]
[311057795,1704891111783,-1354.13,0.0003178,2]
[311057796,1704891111794,-500.0,0.0003178,2]
[311057797,1704891111804,-500.0,0.0003178,2]
[311057798,1704891111814,-313.43377431,0.0003178,2]
[311057799,1704891111824,-638.51,0.0003178,2]
[311057800,1704891111834,-862.28,0.0003178,2]
[311057801,1704891111844,-1181.63,0.0003178,2]
[311057802,1704891111853,-757.94,0.0003178,2]
[311057803,1704891111951,-230.69397145,0.0003178,2]
[311057804,1704891111962,-1015.59,0.0003178,2]
[311057805,1704891111971,-848.07,0.0003178,2]
[311057806,1704891111980,-823.4,0.0003178,2]
[311057807,1704891111991,-783.14,0.0003178,2]
[311057808,1704891112000,-500.0,0.0003178,2]
[311057809,1704891112010,-500.0,0.0003178,2]
[311057810,1704891112020,-1634.17,0.0003178,2]
[311057811,1704891112030,-892.34,0.0003178,2]
[311057812,1704891112040,-500.0,0.0003178,2]
[311057813,1704891112050,-500.0,0.0003178,2]
[311057814,1704891112060,-500.0,0.0003178,2]
[311057815,1704891112070,-1731.94,0.0003178,2]
[311057816,1704891112080,-1097.53,0.0003178,2]
[311057817,1704891112090,-1300.74,0.0003178,2]
[311057818,1704891112099,-1118.35,0.0003178,2]
[311057819,1704891112108,-821.71,0.0003178,2]
[311057820,1704891112118,-1115.5,0.0003178,2]
[311057821,1704891112128,-799.47,0.0003178,2]
[311057822,1704891112137,-500.0,0.0003178,2]
[311057823,1704891112151,-500.0,0.0003178,2]
[311057824,1704891112161,-500.0,0.0003178,2]
[311057825,1704891112171,-1438.57,0.0003178,2]
[311057826,1704891112180,-1466.84,0.0003178,2]
[311057827,1704891112190,-652.51,0.0003178,2]
[311057828,1704891112200,-500.0,0.0003178,2]
[311057829,1704891112210,-1106.08,0.0003178,2]
[311057830,1704891112221,-500.0,0.0003178,2]
[311057831,1704891112231,-1804.0,0.0003178,2]
[311057832,1704891112241,-1166.35,0.0003178,2]
[311057833,1704891112252,-500.0,0.0003178,2]
[311057834,1704891112261,-1134.06,0.0003178,2]
[311057835,1704891112272,-1196.42,0.0003178,2]
[311057836,1704891112282,-545.73,0.0003178,2]
[311057837,1704891112291,-848.12,0.0003178,2]
[311057838,1704891112301,-500.0,0.0003178,2]
[311057839,1704891112316,-714.75,0.0003178,2]
[311057840,1704891112328,-500.0,0.0003178,2]
[311057841,1704891112338,-1566.38,0.0003178,2]
[311057842,1704891112347,-907.54,0.0003178,2]
[311057843,1704891112357,-556.57,0.0003178,2]
[311057844,1704891112367,-924.42,0.0003178,2]
[311057845,1704891112377,-1841.24,0.0003178,2]
[311057846,1704891112386,-500.0,0.0003178,2]
[311057847,1704891112399,-2743.08,0.0003178,2]
[311057848,1704891112408,-500.0,0.0003178,2]
[311057849,1704891112418,-500.0,0.0003178,2]
[311057850,1704891112427,-500.0,0.0003178,2]
[311057851,1704891112436,-1407.91,0.0003178,2]
[311057852,1704891112446,-627.59,0.0003178,2]
[311057853,1704891112455,-1648.35,0.0003178,2]
[311057854,1704891112465,-546.87,0.0003178,2]
[311057855,1704891112475,-574.07,0.0003178,2]
[311057856,1704891112485,-1615.48,0.0003178,2]
[311057857,1704891112495,-1687.92,0.0003178,2]
[311057858,1704891112504,-555.68,0.0003178,2]
[311057859,1704891112514,-997.75,0.0003178,2]
[311057860,1704891112524,-1436.16,0.0003178,2]
[311057861,1704891112534,-783.23,0.0003178,2]
[311057862,1704891112543,-500.0,0.0003178,2]
[311057863,1704891112553,-608.29,0.0003178,2]
[311057864,1704891112563,-893.83,0.0003178,2]
[311057865,1704891112572,-1132.03,0.0003178,2]
[311057866,1704891112582,-1380.57,0.0003178,2]
[311057867,1704891112591,-933.87,0.0003178,2]
[311057868,1704891112600,-500.0,0.0003178,2]
[311057869,1704891112610,-500.0,0.0003178,2]
[311057870,1704891112619,-957.42,0.0003178,2]
[311057871,1704891112628,-995.9,0.0003178,2]
[311057872,1704891112638,-500.0,0.0003178,2]
[311057873,1704891112648,-1856.22,0.0003178,2]
[311057874,1704891112658,-895.94,0.0003178,2]
[311057875,1704891112667,-1480.74,0.0003178,2]
[311057876,1704891112676,-500.0,0.0003178,2]
[311057877,1704891112686,-500.0,0.0003178,2]
[311057878,1704891112696,-776.38,0.0003178,2]
[311057879,1704891112706,-1298.12,0.0003178,2]
[311057880,1704891112717,-333.27,0.0003178,2]
[311057881,1704891112727,-1188.98,0.0003178,2]
[311057882,1704891112738,-791.87,0.0003178,2]
[311057883,1704891112748,-500.0,0.0003178,2]
[311057884,1704891112758,-577.69,0.0003178,2]
[311057885,1704891112768,-700.71,0.0003178,2]
[311057886,1704891112778,-682.9,0.0003178,2]
[311057887,1704891112788,-1037.2,0.0003178,2]
[311057888,1704891112797,-500.0,0.0003178,2]
[311057889,1704891112807,-923.76,0.0003178,2]
[311057890,1704891112817,-1290.28,0.0003178,2]
[311057891,1704891112826,-694.02,0.0003178,2]
[311057892,1704891112836,-500.0,0.0003178,2]
[311057893,1704891112846,-672.12,0.0003178,2]
[311057894,1704891112856,-751.24,0.0003178,2]
[311057895,1704891112865,-791.74,0.0003178,2]
[311057896,1704891112875,-500.0,0.0003178,2]
[311057897,1704891112885,-2135.41,0.0003178,2]
[311057898,1704891112897,-630.74,0.0003178,2]
[311057899,1704891112907,-500.0,0.0003178,2]
[311057900,1704891112916,-1065.89,0.0003178,2]
[311057901,1704891112927,-500.0,0.0003178,2]
[311057902,1704891112937,-1611.31,0.0003178,2]
[311057903,1704891112947,-537.76,0.0003178,2]
[311057904,1704891112956,-500.0,0.0003178,2]
[311057905,1704891112967,-500.0,0.0003178,2]
[311057906,1704891112976,-500.0,0.0003178,2]
[311057907,1704891112986,-508.12,0.0003178,2]
[311057908,1704891112995,-500.0,0.0003178,2]
[311057909,1704891113005,-1096.88,0.0003178,2]
[311057910,1704891113015,-500.0,0.0003178,2]
[311057911,1704891113024,-1235.12,0.0003178,2]
[311057912,1704891113034,-500.0,0.0003178,2]
[311057913,1704891113043,-1332.96,0.0003178,2]
[311057914,1704891113053,-1351.54,0.0003178,2]
[311057915,1704891113062,-500.0,0.0003178,2]
[311057916,1704891113071,-500.0,0.0003178,2]
[311057917,1704891113081,-500.0,0.0003178,2]
[311057918,1704891113090,-525.51,0.0003178,2]
[311057919,1704891113100,-500.0,0.0003178,2]
[311057920,1704891113109,-500.0,0.0003178,2]
[311057921,1704891113119,-500.0,0.0003178,2]
[311057922,1704891113128,-500.0,0.0003178,2]
[311057923,1704891113138,-500.0,0.0003178,2]
[311057924,1704891113149,-551.86,0.0003178,2]
[311057925,1704891113158,-2153.22,0.0003178,2]
[311057926,1704891113167,-478.01771336,0.0003178,2]
[311057927,1704891113177,-894.32,0.0003178,2]
[311057928,1704891113187,-1551.48,0.0003178,2]
[311057929,1704891113196,-1823.35,0.0003178,2]
[311057930,1704891113207,-656.22,0.0003178,2]
[311057931,1704891113217,-500.0,0.0003178,2]
[311057932,1704891113227,-500.0,0.0003178,2]
[311057933,1704891113237,-903.93,0.0003178,2]
[311057934,1704891113247,-784.54,0.0003178,2]
[311057935,1704891113257,-500.0,0.0003178,2]
[311057936,1704891113267,-1466.91,0.0003178,2]
[311057937,1704891113277,-1006.56,0.0003178,2]
[311057938,1704891113287,-1655.17,0.0003178,2]
[311057939,1704891113297,-533.08,0.0003178,2]
[311057940,1704891113310,-3133.81,0.0003178,2]
[311057941,1704891113321,-761.32,0.0003178,2]
[311057942,1704891113331,-500.0,0.0003178,2]
[311057943,1704891113341,-500.0,0.0003178,2]
[311057944,1704891113351,-500.0,0.0003178,2]
[311057945,1704891113360,-500.0,0.0003178,2]
[311057946,1704891113370,-1170.77,0.0003178,2]
[311057947,1704891113380,-500.0,0.0003178,2]
[311057948,1704891113392,-500.0,0.0003178,2]
[311057949,1704891113402,-1368.59,0.0003178,2]
[311057950,1704891113412,-661.49,0.0003178,2]
[311057951,1704891113423,-1618.49,0.0003178,2]
[311057952,1704891113434,-696.22,0.0003178,2]
[311057953,1704891113444,-8919.11,0.0003178,2]
[311057954,1704891113454,-500.0,0.0003178,2]
[311057955,1704891113464,-1000.0,0.0003178,2]
[311057956,1704891113474,-813.18,0.0003178,2]
[311057957,1704891113484,-500.0,0.0003178,2]
[311057958,1704891113494,-916.52,0.0003178,2]
[311057959,1704891113504,-484.51,0.0003178,2]
[311057960,1704891113514,-500.0,0.0003178,2]
[311057961,1704891113524,-500.0,0.0003178,2]
[311057962,1704891113534,-500.0,0.0003178,2]
[311057963,1704891113543,-1010.96,0.0003178,2]
[311057964,1704891113553,-500.0,0.0003178,2]
[311057965,1704891113564,-500.0,0.0003178,2]
[311057966,1704891113574,-669.44,0.0003178,2]
[311057967,1704891113584,-1654.81,0.0003178,2]
[311057968,1704891113593,-895.64,0.0003178,2]
[311057969,1704891113603,-5719.09,0.0003178,2]
[311057970,1704891113613,-500.0,0.0003178,2]
[311057971,1704891113622,-500.0,0.0003178,2]
[311057972,1704891113631,-3241.68,0.0003178,2]
[311057973,1704891113642,-2147.06,0.0003178,2]
[311057974,1704891113651,-500.0,0.0003178,2]
[311057975,1704891113660,-4583.07,0.0003178,2]
[311057976,1704891113670,-330.92720849,0.0003178,2]
[311057977,1704891113680,-4104.47,0.0003178,2]
[311057978,1704891113690,-500.0,0.0003178,2]
[311057979,1704891113700,-1135.8,0.0003178,2]
[311057980,1704891113709,-4864.49,0.0003178,2]
[311057981,1704891113719,-1172.6,0.0003178,2]
[311057982,1704891113729,-1306.53,0.0003178,2]
[311057983,1704891113738,-500.0,0.0003178,2]
[311057984,1704891113748,-605.42,0.0003178,2]
[311057985,1704891113757,-500.0,0.0003178,2]
[311057986,1704891113767,-1839.88,0.0003178,2]
[311057987,1704891113777,-613.66,0.0003178,2]
[311057988,1704891113786,-3152.91,0.0003178,2]
[311057989,1704891113796,-500.0,0.0003178,2]
[311057990,1704891113806,-848.46,0.0003178,2]
[311057991,1704891113816,-1217.95,0.0003178,2]
[311057992,1704891113826,-3087.19,0.0003178,2]
[311057993,1704891113836,-1107.32,0.0003178,2]
[311057994,1704891113846,-1973.9,0.0003178,2]
[311057995,1704891113855,-1243.05,0.0003178,2]
[311057996,1704891113865,-500.0,0.0003178,2]
[311057997,1704891113875,-500.0,0.0003178,2]
[311057998,1704891113884,-998.38,0.0003178,2]
[311057999,1704891113895,-1702.03,0.0003178,2]
[311058000,1704891113905,-500.0,0.0003178,2]
[311058001,1704891113914,-515.72,0.0003178,2]
[311058002,1704891113924,-500.0,0.0003178,2]
[311058003,1704891113934,-3061.74,0.0003178,2]
[311058004,1704891113943,-500.0,0.0003178,2]
[311058005,1704891113953,-3064.76,0.0003178,2]
[311058006,1704891113963,-500.0,0.0003178,2]
[311058007,1704891113973,-996.01,0.0003178,2]
[311058008,1704891113983,-1068.18,0.0003178,2]
[311058009,1704891113994,-1153.97,0.0003178,2]
[311058010,1704891114004,-6469.31,0.0003178,2]
[311058011,1704891114015,-500.0,0.0003178,2]
[311058012,1704891114025,-500.0,0.0003178,2]
[311058013,1704891114036,-1516.45,0.0003178,2]
[311058014,1704891114047,-20572.41,0.0003178,2]
[311058015,1704891114057,-835.36,0.0003178,2]
[311058016,1704891114069,-508.77,0.0003178,2]
[311058017,1704891114080,-876.85,0.0003178,2]
[311058018,1704891114092,-1211.96,0.0003178,2]
[311058019,1704891114102,-8935.6,0.0003178,2]
[311058020,1704891114113,-500.0,0.0003178,2]
[311058021,1704891114123,-749.11,0.0003178,2]
[311058022,1704891114133,-500.0,0.0003178,2]
[311058023,1704891114145,-500.0,0.0003178,2]
[311058024,1704891114156,-3428.01,0.0003178,2]
[311058025,1704891114166,-500.0,0.0003178,2]
[311058026,1704891114176,-320.0,0.0003178,2]
[311058027,1704891114186,-1411.74,0.0003178,2]
[311058028,1704891114196,-51777.21,0.0003178,2]
[311058029,1704891114206,-2414.62,0.0003178,2]
[311058030,1704891114217,-500.0,0.0003178,2]
[311058031,1704891114228,-28702.52,0.0003178,2]
[311058032,1704891114238,-1449.33,0.0003178,2]
[311058033,1704891114248,-500.0,0.0003178,2]
[311058034,1704891114258,-729.81,0.0003178,2]
[311058035,1704891114269,-1741.33,0.0003178,2]
[311058036,1704891114279,-500.0,0.0003178,2]
[311058037,1704891114289,-500.0,0.0003178,2]
[311058038,1704891114299,-18242.51,0.0003178,2]
[311058039,1704891114314,-982.47,0.0003178,2]
[311058040,1704891114324,-7322.32,0.0003178,2]
[311058041,1704891114336,-3044.12,0.0003178,2]
[311058042,1704891114346,-1198.42,0.0003178,2]
[311058043,1704891114356,-883.98,0.0003178,2]
[311058044,1704891114366,-669.65,0.0003178,2]
[311058045,1704891114376,-936.43,0.0003178,2]
[311058046,1704891114386,-1931.34,0.0003178,2]
[311058047,1704891114399,-500.0,0.0003178,2]
[311058048,1704891114410,-596.34,0.0003178,2]
[311058049,1704891114421,-5311.52,0.0003178,2]
[311058050,1704891114431,-591.04,0.0003178,2]
[311058051,1704891114441,-756.46,0.0003178,2]
[311058052,1704891114452,-1716.44,0.0003178,2]
[311058053,1704891114462,-500.0,0.0003178,2]
[311058054,1704891114472,-1935.34,0.0003178,2]
[311058055,1704891114482,-1335.68,0.0003178,2]
[311058056,1704891114492,-11436.48,0.0003178,2]
[311058057,1704891114504,-896.69,0.0003178,2]
[311058058,1704891114514,-630.3,0.0003178,2]
[311058059,1704891114524,-5273.56,0.0003178,2]
[311058060,1704891114534,-7205.25,0.0003178,2]
[311058061,1704891114545,-738.84,0.0003178,2]
[311058062,1704891114556,-500.0,0.0003178,2]
[311058063,1704891114567,-1192.7,0.0003178,2]
[311058064,1704891114578,-962.89,0.0003178,2]
[311058065,1704891114589,-717.02,0.0003178,2]
[311058066,1704891114599,-1285.43,0.0003178,2]
[311058067,1704891114610,-6876.74,0.0003178,2]
[311058068,1704891114622,-6606.78,0.0003178,2]
[311058069,1704891114633,-554.15443841,0.0003178,2]
[311058070,1704891114646,-1732.97,0.0003178,2]
[311058071,1704891114656,-7057.36,0.0003178,2]
[311058072,1704891114667,-500.0,0.0003178,2]
[311058073,1704891114678,-2245.33,0.0003178,2]
[311058074,1704891114690,-1567.49,0.0003178,2]
[311058075,1704891114700,-512.51775988,0.0003178,2]
[311058076,1704891114711,-790.0,0.0003178,2]
[311058077,1704891114721,-932.57,0.0003178,2]
[311058078,1704891114732,-2499.19,0.0003178,2]
[311058079,1704891114742,-500.0,0.0003178,2]
[311058080,1704891114752,-1333.7,0.0003178,2]
[311058081,1704891114762,-2921.42,0.0003178,2]
[311058082,1704891114772,-4128.32,0.0003178,2]
[311058083,1704891114782,-500.0,0.0003178,2]
[311058084,1704891114792,-783.63,0.0003178,2]
[311058085,1704891114802,-682.44,0.0003178,2]
[311058086,1704891114812,-1293.22,0.0003178,2]
[311058087,1704891114822,-1047.14,0.0003178,2]
[311058088,1704891114833,-3328.34,0.0003178,2]
[311058089,1704891114843,-349.730186,0.0003178,2]
[311058090,1704891114853,-953.47,0.0003178,2]
[311058091,1704891114863,-2153.92,0.0003178,2]
[311058092,1704891114874,-2896.37,0.0003178,2]
[311058093,1704891114884,-668.72,0.0003178,2]
[311058094,1704891114894,-3025.67,0.0003178,2]
[311058095,1704891114905,-1350.56,0.0003178,2]
[311058096,1704891114915,-2341.12,0.0003178,2]
[311058097,1704891114926,-500.0,0.0003178,2]
[311058098,1704891114936,-2098.62,0.0003178,2]
[311058099,1704891114946,-703.2,0.0003178,2]
[311058100,1704891114957,-1930.74,0.0003178,2]
[311058101,1704891114967,-500.0,0.0003178,2]
[311058102,1704891114978,-5339.67,0.0003178,2]
[311058103,1704891114989,-500.0,0.0003178,2]
[311058104,1704891115000,-500.0,0.0003178,2]
[311058105,1704891115010,-503.67,0.0003178,2]
[311058106,1704891115021,-4486.53,0.0003178,2]
[311058107,1704891115031,-1093.38,0.0003178,2]
[311058108,1704891115042,-3990.83,0.0003178,2]
[311058109,1704891115052,-843.02,0.0003178,2]
[311058110,1704891115063,-3222.77,0.0003178,2]
[311058111,1704891115074,-915.67,0.0003178,2]
[311058112,1704891115084,-500.0,0.0003178,2]
[311058113,1704891115096,-500.0,0.0003178,2]
[311058114,1704891115106,-6104.89,0.0003178,2]
[311058115,1704891115116,-723.37,0.0003178,2]
[311058116,1704891115126,-500.0,0.0003178,2]
[311058117,1704891115137,-500.0,0.0003178,2]
[311058118,1704891115148,-1149.9,0.0003178,2]
[311058119,1704891115158,-500.0,0.0003178,2]
[311058120,1704891115169,-5798.03,0.0003178,2]
[311058121,1704891115179,-500.0,0.0003178,2]
[311058122,1704891115189,-4625.49,0.0003178,2]
[311058123,1704891115201,-550.5,0.0003178,2]
[311058124,1704891115211,-13391.47,0.0003178,2]
[311058125,1704891115222,-402.7261641,0.0003178,2]
[311058126,1704891115233,-1882.58,0.0003178,2]
[311058127,1704891115243,-1438.47,0.0003178,2]
[311058128,1704891115253,-500.0,0.0003178,2]
[311058129,1704891115263,-3391.89,0.0003178,2]
[311058130,1704891115274,-17056.02,0.0003178,2]
[311058131,1704891115284,-1903.64,0.0003178,2]
[311058132,1704891115294,-1223.46,0.0003178,2]
[311058133,1704891115304,-535.17,0.0003178,2]
[311058134,1704891115318,-500.0,0.0003178,2]
[311058135,1704891115329,-1447.74,0.0003178,2]
[311058136,1704891115340,-903.74,0.0003178,2]
[311058137,1704891115350,-1181.32,0.0003178,2]
[311058138,1704891115361,-500.0,0.0003178,2]
[311058139,1704891115372,-897.9,0.0003178,2]
[311058140,1704891115382,-2647.12,0.0003178,2]
[311058141,1704891115393,-500.0,0.0003178,2]
[311058142,1704891115403,-3416.68,0.0003178,2]
[311058143,1704891115414,-500.0,0.0003178,2]
[311058144,1704891115425,-2765.04,0.0003178,2]
[311058145,1704891115435,-1323.99,0.0003178,2]
[311058146,1704891115445,-605.66,0.0003178,2]
[311058147,1704891115457,-500.0,0.0003178,2]
[311058148,1704891115468,-1240.59,0.0003178,2]
[311058149,1704891115479,-656.06,0.0003178,2]
[311058150,1704891115490,-1858.38,0.0003178,2]
[311058151,1704891115501,-1066.0,0.0003178,2]
[311058152,1704891115511,-3383.46,0.0003178,2]
[311058153,1704891115522,-556.19,0.0003178,2]
[311058154,1704891115533,-1414.02,0.0003178,2]
[311058155,1704891115544,-1721.84,0.0003178,2]
[311058156,1704891115554,-506.73,0.0003178,2]
[311058157,1704891115564,-6948.27,0.0003178,2]
[311058158,1704891115574,-500.0,0.0003178,2]
[311058159,1704891115585,-787.87,0.0003178,2]
[311058160,1704891115595,-875.41,0.0003178,2]
[311058161,1704891115605,-905.55,0.0003178,2]
[311058162,1704891115615,-1113.97,0.0003178,2]
[311058163,1704891115625,-1850.44,0.0003178,2]
[311058164,1704891115635,-2699.57,0.0003178,2]
[311058165,1704891115647,-13325.5,0.0003178,2]
[311058166,1704891115658,-622.97,0.0003178,2]
[311058167,1704891115669,-975.55,0.0003178,2]
[311058168,1704891115679,-816.51,0.0003178,2]
[311058169,1704891115689,-602.85,0.0003178,2]
[311058170,1704891115700,-1571.82,0.0003178,2]
[311058171,1704891115711,-500.0,0.0003178,2]
[311058172,1704891115722,-1172.85,0.0003178,2]
[311058173,1704891115732,-1902.92,0.0003178,2]
[311058174,1704891115743,-1103.19,0.0003178,2]
[311058175,1704891115753,-1029.72,0.0003178,2]
[311058176,1704891115763,-551.04,0.0003178,2]
[311058177,1704891115774,-500.0,0.0003178,2]
[311058178,1704891115784,-719.09,0.0003178,2]
[311058179,1704891115793,-500.0,0.0003178,2]
[311058180,1704891115804,-6582.51,0.0003178,2]
[311058181,1704891115814,-816.66,0.0003178,2]
[311058182,1704891115824,-4042.49,0.0003178,2]
[311058183,1704891115834,-711.14,0.0003178,2]
[311058184,1704891115844,-500.0,0.0003178,2]
[311058185,1704891115854,-750.11,0.0003178,2]
[311058186,1704891115865,-500.0,0.0003178,2]
[311058187,1704891115875,-3983.8,0.0003178,2]
[311058188,1704891115886,-541.81,0.0003178,2]
[311058189,1704891115898,-548.8,0.0003178,2]
[311058190,1704891115908,-1032.31,0.0003178,2]
[311058191,1704891115918,-3506.94,0.0003178,2]
[311058192,1704891115928,-1408.06,0.0003178,2]
[311058193,1704891115939,-1081.29,0.0003178,2]
[311058194,1704891115949,-1527.61,0.0003178,2]
[311058195,1704891115959,-8785.85,0.0003178,2]
[311058196,1704891115969,-660.7,0.0003178,2]
[311058197,1704891115979,-1142.75,0.0003178,2]
[311058198,1704891115989,-2858.46,0.0003178,2]
[311058199,1704891115999,-2768.41,0.0003178,2]
[311058200,1704891116010,-4131.39,0.0003178,2]
[311058201,1704891116021,-2292.41,0.0003178,2]
[311058202,1704891116031,-746.91,0.0003178,2]
[311058203,1704891116042,-2876.26,0.0003178,2]
[311058204,1704891116053,-1039.47,0.0003178,2]
[311058205,1704891116063,-2634.97,0.0003178,2]
[311058206,1704891116074,-2170.96,0.0003178,2]
[311058207,1704891116085,-1716.45,0.0003178,2]
[311058208,1704891116098,-602.26,0.0003178,2]
[311058209,1704891116109,-3670.86,0.0003178,2]
[311058210,1704891116119,-500.0,0.0003178,2]
[311058211,1704891116129,-500.0,0.0003178,2]
[311058212,1704891116141,-500.0,0.0003178,2]
[311058213,1704891116153,-500.0,0.0003178,2]
[311058214,1704891116163,-614.41,0.0003178,2]
[311058215,1704891116173,-2195.0,0.0003178,2]
[311058216,1704891116183,-1673.5,0.0003178,2]
[311058217,1704891116193,-500.0,0.0003178,2]
[311058218,1704891116203,-2390.42,0.0003178,2]
[311058219,1704891116214,-5390.38,0.0003178,2]
[311058220,1704891116224,-3651.48,0.0003178,2]
[311058221,1704891116235,-38163.08,0.0003178,2]
[311058222,1704891116245,-1000.0,0.0003178,2]
[311058223,1704891116255,-500.0,0.0003178,2]
[311058224,1704891116266,-1305.31,0.0003178,2]
[311058225,1704891116276,-1396.89,0.0003178,2]
[311058226,1704891116286,-1467.77,0.0003178,2]
[311058227,1704891116297,-500.0,0.0003178,2]
[311058228,1704891116309,-1697.53,0.0003178,2]
[311058229,1704891116321,-14627.59,0.0003178,2]
[311058230,1704891116332,-2605.66,0.0003178,2]
[311058231,1704891116343,-500.0,0.0003178,2]
[311058232,1704891116609,-601.21,0.0003178,2]
[311058233,1704891116618,-1698.7,0.0003178,2]
[311058234,1704891116632,-3381.31,0.0003178,2]
[311058235,1704891116642,-3094.77,0.0003178,2]
[311058236,1704891116653,-999.48,0.0003178,2]
[311058237,1704891116663,-607.81,0.0003178,2]
[311058238,1704891116673,-30990.15,0.0003178,2]
[311058239,1704891116683,-2892.8,0.0003178,2]
[311058240,1704891116693,-500.0,0.0003178,2]
[311058241,1704891116703,-5290.12,0.0003178,2]
[311058242,1704891116713,-500.0,0.0003178,2]
[311058243,1704891116723,-1578.38,0.0003178,2]
[311058244,1704891116733,-642.94,0.0003178,2]
[311058245,1704891116744,-2017.0,0.0003178,2]
[311058246,1704891116754,-840.86,0.0003178,2]
[311058247,1704891116764,-500.0,0.0003178,2]
[311058248,1704891116774,-4827.58,0.0003178,2]
[311058249,1704891116784,-3994.86,0.0003178,2]
[311058250,1704891116794,-1048.25,0.0003178,2]
[311058251,1704891116804,-1904.14,0.0003178,2]
[311058252,1704891116814,-500.0,0.0003178,2]
[311058253,1704891116824,-1424.2,0.0003178,2]
[311058254,1704891116834,-539.92,0.0003178,2]
[311058255,1704891116844,-1050.78,0.0003178,2]
[311058256,1704891116854,-2602.05,0.0003178,2]
[311058257,1704891116863,-500.0,0.0003178,2]
[311058258,1704891116873,-5503.03,0.0003178,2]
[311058259,1704891116884,-1522.78,0.0003178,2]
[311058260,1704891116895,-2260.26,0.0003178,2]
[311058261,1704891116906,-821.97,0.0003178,2]
[311058262,1704891116916,-753.71,0.0003178,2]
[311058263,1704891116926,-1838.58,0.0003178,2]
[311058264,1704891116936,-901.27,0.0003178,2]
[311058265,1704891116945,-782.96,0.0003178,2]
[311058266,1704891116956,-6384.72,0.0003178,2]
[311058267,1704891116966,-627.49,0.0003178,2]
[311058268,1704891116976,-2196.77,0.0003178,2]
[311058269,1704891116986,-500.0,0.0003178,2]
[311058270,1704891116996,-599.02,0.0003178,2]
[311058271,1704891117006,-632.63,0.0003178,2]
[311058272,1704891117016,-864.41,0.0003178,2]
[311058273,1704891117026,-1516.0,0.0003178,2]
[311058274,1704891117036,-2505.88,0.0003178,2]
[311058275,1704891117046,-6045.31,0.0003178,2]
[311058276,1704891117056,-3365.53,0.0003178,2]
[311058277,1704891117066,-720.09,0.0003178,2]
[311058278,1704891117076,-500.0,0.0003178,2]
[311058279,1704891117086,-1765.01,0.0003178,2]
[311058280,1704891117097,-870.91,0.0003178,2]
[311058281,1704891117107,-927.81,0.0003178,2]
[311058282,1704891117117,-2120.01,0.0003178,2]
[311058283,1704891117127,-767.25,0.0003178,2]
[311058284,1704891117136,-868.01,0.0003178,2]
[311058285,1704891117147,-1570.4,0.0003178,2]
[311058286,1704891117157,-500.0,0.0003178,2]
[311058287,1704891117167,-2584.72,0.0003178,2]
[311058288,1704891117178,-5200.93,0.0003178,2]